fUST/lending_fUST_20240227
["ID","MTS","AMOUNT","RATE_DAILY","PERIOD"]
[315429575,1709029838285,-220.04820398,0.00019178,2]
[315429576,1709029838293,-500.64514974,0.00019178,2]
[315429578,1709029838303,-500.0,0.00019178,2]
[315429579,1709029838311,-292.53384056,0.00019178,2]
[315429580,1709029838320,-500.0,0.00019178,2]
[315429581,1709029838329,-509.88522936,0.00019178,2]
[315429582,1709029838338,-500.0,0.00019178,2]
[315429583,1709029838347,-500.0,0.00019178,2]
[315429584,1709029838356,-500.0,0.00019178,2]
[315429585,1709029838365,-500.0,0.00019178,2]
[315429586,1709029838374,-1268.67,0.00019178,2]
[315429587,1709029838383,-211.14111785,0.00019178,2]
[315429588,1709029838392,-775.4,0.00019178,2]
[315429589,1709029838402,-502.22775455,0.00019178,2]
[315429590,1709029838411,-749.07,0.00019178,2]
[315429591,1709029838421,-500.0,0.00019178,2]
[315429592,1709029838430,-500.0,0.00019178,2]
[315429593,1709029838439,-500.0,0.00019178,2]
[315429594,1709029838447,-500.0,0.00019178,2]
[315429595,1709029838456,-502.13809935,0.00019178,2]
[315429596,1709029838465,-155.0,0.00019178,2]
[315429597,1709029838474,-500.0,0.00019178,2]
[315429598,1709029838483,-500.0,0.00019178,2]
[315429599,1709029838493,-500.0,0.00019178,2]
[315429600,1709029838501,-500.0,0.00019178,2]
[315429601,1709029838510,-506.51167982,0.00019178,2]
[315429602,1709029838519,-162.83762222,0.00019178,2]
[315429603,1709029838528,-500.65277545,0.00019178,2]
[315429604,1709029838538,-500.80767734,0.00019178,2]
[315429605,1709029838547,-500.0,0.00019178,2]
[315429606,1709029838556,-227.67643892,0.00019178,2]
[315429607,1709029838565,-500.0,0.00019178,2]
[315429608,1709029838575,-500.84804991,0.00019178,2]
[315429609,1709029838583,-500.0,0.00019178,2]
[315429610,1709029838593,-500.0,0.00019178,2]
[315429611,1709029838602,-500.0,0.00019178,2]
[315429612,1709029838611,-500.0,0.00019178,2]
[315429613,1709029838620,-500.0,0.00019178,2]
[315429614,1709029838630,-500.0,0.00019178,2]
[315429615,1709029838639,-500.0,0.00019178,2]
[315429616,1709029838648,-500.0,0.00019178,2]
[315429617,1709029838658,-500.0,0.00019178,2]
[315429618,1709029838668,-500.0,0.00019178,2]
[315429619,1709029838677,-500.0,0.00019178,2]
[315429620,1709029838687,-500.0,0.00019178,2]
[315429621,1709029838696,-500.0,0.00019178,2]
[315429622,1709029838704,-1536.97,0.00019178,2]
[315429623,1709029838713,-310.0,0.00019178,2]
[315429624,1709029838723,-500.0,0.00019178,2]
[315429625,1709029838732,-500.0,0.00019178,2]
[315429626,1709029838742,-632.27431855,0.00019178,2]
[315429627,1709029838751,-500.0,0.00019178,2]
[315429628,1709029838760,-1519.07,0.00019178,2]
[315429629,1709029838770,-500.0,0.00019178,2]
[315429630,1709029838779,-500.0,0.00019178,2]
[315429631,1709029838789,-500.0,0.00019178,2]
[315429632,1709029838799,-500.0,0.00019178,2]
[315429633,1709029838808,-500.0,0.00019178,2]
[315429634,1709029838817,-500.0,0.00019178,2]
[315429635,1709029838827,-500.0,0.00019178,2]
[315429636,1709029838836,-500.18571217,0.00019178,2]
[315429637,1709029838845,-500.0,0.00019178,2]
[315429638,1709029838854,-500.20544472,0.00019178,2]
[315429639,1709029838864,-500.0,0.00019178,2]
[315429640,1709029838873,-500.53281888,0.00019178,2]
[315429641,1709029838884,-500.0,0.00019178,2]
[315429642,1709029838895,-500.0,0.00019178,2]
[315429643,1709029838905,-500.0,0.00019178,2]
[315429644,1709029838916,-500.0,0.00019178,2]
[315429645,1709029838926,-907.1,0.00019178,2]
[315429646,1709029838935,-500.0,0.00019178,2]
[315429647,1709029838945,-685.27,0.00019178,2]
[315429648,1709029838956,-501.62472493,0.00019178,2]
[315429649,1709029838965,-500.0,0.00019178,2]
[315429650,1709029838977,-500.0,0.00019178,2]
[315429651,1709029838988,-523.56834789,0.00019178,2]
[315429652,1709029838998,-500.0,0.00019178,2]
[315429653,1709029839009,-500.0,0.00019178,2]
[315429654,1709029839018,-500.0,0.00019178,2]
[315429655,1709029839028,-500.0,0.00019178,2]
[315429656,1709029839038,-500.44810422,0.00019178,2]
[315429657,1709029839048,-500.96626582,0.00019178,2]
[315429658,1709029839059,-744.2,0.00019178,2]
[315429659,1709029839070,-500.0,0.00019178,2]
[315429660,1709029839081,-500.0,0.00019178,2]
[315429661,1709029839091,-500.0,0.00019178,2]
[315429662,1709029839101,-500.0,0.00019178,2]
[315429663,1709029839110,-2092.87,0.00019178,2]
[315429664,1709029839119,-500.0,0.00019178,2]
[315429665,1709029839128,-334.88546012,0.00019178,2]
[315429666,1709029839137,-501.36407866,0.00019178,2]
[315429667,1709029839145,-1360.77,0.00019178,2]
[315429668,1709029839155,-9597.02,0.00019178,2]
[315429669,1709029839164,-500.48331824,0.00019178,2]
[315429670,1709029839173,-500.0,0.00019178,2]
[315429671,1709029839182,-503.20835864,0.00019178,2]
[315429672,1709029839191,-401.70891154,0.00019178,2]
[315429673,1709029839199,-500.0,0.00019178,2]
[315429674,1709029839209,-3776.74,0.00019178,2]
[315429675,1709029839218,-500.0,0.00019178,2]
[315429676,1709029839228,-500.0,0.00019178,2]
[315429677,1709029839237,-1000.0,0.00019178,2]
[315429678,1709029839246,-500.0,0.00019178,2]
[315429685,1709029839354,-1843.95,0.00019178,2]
[315429686,1709029839364,-268.55333724,0.00019178,2]
[315429687,1709029839373,-598.39,0.00019178,2]
[315429688,1709029839382,-501.98121851,0.00019178,2]
[315429689,1709029839391,-500.0,0.00019178,2]
[315429690,1709029839400,-500.0,0.00019178,2]
[315429691,1709029839409,-500.0,0.00019178,2]
[315429692,1709029839419,-583.2051723,0.00019178,2]
[315429693,1709029839428,-500.0,0.00019178,2]
[315429694,1709029839437,-544.99348939,0.00019178,2]
[315429695,1709029839446,-500.0,0.00019178,2]
[315429696,1709029839455,-500.67580525,0.00019178,2]
[315429697,1709029839464,-500.0,0.00019178,2]
[315429698,1709029839473,-443.10422866,0.00019178,2]
[315429699,1709029839483,-1946.01,0.00019178,2]
[315429700,1709029839495,-500.0,0.00019178,2]
[315429701,1709029839504,-500.0,0.00019178,2]
[315429702,1709029839514,-500.0,0.00019178,2]
[315429703,1709029839523,-2557.53,0.00019178,2]
[315429704,1709029839531,-500.0,0.00019178,2]
[315429705,1709029839541,-500.0,0.00019178,2]
[315429706,1709029839550,-549.59387891,0.00019178,2]
[315429707,1709029839559,-504.40324197,0.00019178,2]
[315429708,1709029839568,-500.0,0.00019178,2]
[315429709,1709029839577,-502.99389628,0.00019178,2]
[315429710,1709029839586,-500.0,0.00019178,2]
[315429711,1709029839595,-500.0,0.00019178,2]
[315429712,1709029839604,-17411.95,0.00019178,2]
[315429713,1709029839614,-500.0,0.00019178,2]
[315429714,1709029839623,-500.0,0.00019178,2]
[315429715,1709029839632,-500.0,0.00019178,2]
[315429716,1709029839642,-500.0,0.00019178,2]
[315429717,1709029839651,-500.0,0.00019178,2]
[315429718,1709029839661,-500.0,0.00019178,2]
[315429719,1709029839672,-500.0,0.00019178,2]
[315429720,1709029839681,-1202.2,0.00019178,2]
[315429721,1709029839690,-1690.48,0.00019178,2]
[315429722,1709029839699,-500.0,0.00019178,2]
[315429723,1709029839708,-500.0,0.00019178,2]
[315429724,1709029839717,-500.0,0.00019178,2]
[315429725,1709029839726,-500.0,0.00019178,2]
[315429726,1709029839735,-593.2402925,0.00019178,2]
[315429727,1709029839743,-500.0,0.00019178,2]
[315429728,1709029839752,-500.0,0.00019178,2]
[315429729,1709029839761,-451.77238634,0.00019178,2]
[315429730,1709029839769,-500.91730771,0.00019178,2]
[315429731,1709029839778,-500.0,0.00019178,2]
[315429732,1709029839787,-500.0,0.00019178,2]
[315429733,1709029839796,-500.0,0.00019178,2]
[315429734,1709029839805,-821.94,0.00019178,2]
[315429735,1709029839814,-821.94,0.00019178,2]
[315429736,1709029839824,-821.94,0.00019178,2]
[315429737,1709029839833,-821.94,0.00019178,2]
[315429738,1709029839842,-1304.09,0.00019178,2]
[315429739,1709029839850,-501.95643743,0.00019178,2]
[315429740,1709029839859,-500.0,0.00019178,2]
[315429741,1709029839868,-500.0,0.00019178,2]
[315429742,1709029839877,-500.0,0.00019178,2]
[315429743,1709029839915,-593.26,0.00019178,2]
[315429744,1709029839925,-501.17206482,0.00019178,2]
[315429745,1709029839935,-500.0,0.00019178,2]
[315429746,1709029839945,-500.0,0.00019178,2]
[315429747,1709029839955,-6492.69,0.00019178,2]
[315429748,1709029839963,-2133.72,0.00019178,2]
[315429749,1709029839972,-500.0,0.00019178,2]
[315429750,1709029839983,-500.0,0.00019178,2]
[315429751,1709029839993,-500.0,0.00019178,2]
[315429752,1709029840002,-524.3336593,0.00019178,2]
[315429753,1709029840011,-500.0,0.00019178,2]
[315429754,1709029840020,-500.0,0.00019178,2]
[315429755,1709029840029,-501.378692,0.00019178,2]
[315429756,1709029840038,-500.0,0.00019178,2]
[315429757,1709029840047,-4510.36,0.00019178,2]
[315429758,1709029840056,-1414.54,0.00019178,2]
[315429759,1709029840065,-500.0,0.00019178,2]
[315429760,1709029840074,-3051.96,0.00019178,2]
[315429762,1709029840083,-500.0,0.00019178,2]
[315429764,1709029840092,-320.15175574,0.00019178,2]
[315429765,1709029840101,-500.0,0.00019178,2]
[315429766,1709029840110,-500.0,0.00019178,2]
[315429767,1709029840119,-17947.83,0.00019178,2]
[315429768,1709029840128,-500.0,0.00019178,2]
[315429769,1709029840137,-500.0,0.00019178,2]
[315429770,1709029840147,-1302.63,0.00019178,2]
[315429771,1709029840156,-3826.56,0.00019178,2]
[315429772,1709029840166,-868.04,0.00019178,2]
[315429773,1709029840175,-500.0,0.00019178,2]
[315429774,1709029840185,-3097.32,0.00019178,2]
[315429775,1709029840196,-500.0,0.00019178,2]
[315429776,1709029840206,-2279.01,0.00019178,2]
[315429777,1709029840216,-500.0,0.00019178,2]
[315429778,1709029840226,-500.0,0.00019178,2]
[315429779,1709029840235,-501.22080587,0.00019178,2]
[315429780,1709029840244,-728.61,0.00019178,2]
[315429781,1709029840253,-500.0,0.00019178,2]
[315429782,1709029840262,-500.0,0.00019178,2]
[315429783,1709029840272,-500.0,0.00019178,2]
[315429784,1709029840281,-500.0,0.00019178,2]
[315429785,1709029840290,-1677.26,0.00019178,2]
[315429786,1709029840299,-500.27404044,0.00019178,2]
[315429787,1709029840308,-1097.39,0.00019178,2]
[315429788,1709029840316,-696.69,0.00019178,2]
[315429789,1709029840326,-500.0,0.00019178,2]
[315429790,1709029840334,-694.82180753,0.00019178,2]
[315429791,1709029840345,-163.466573,0.00019178,2]
[315429792,1709029840354,-166.666666,0.00019178,2]
[315429793,1709029840365,-430.973088,0.00019178,4]
[315429794,1709029840374,-167.922832,0.00019178,2]
[315429795,1709029840384,-959.01542021,0.00019187,2]
[315429796,1709029840394,-500.0,0.00019232,2]
[315429797,1709029840404,-500.0,0.0001925,2]
[315429798,1709029840413,-500.0,0.0001925,2]
[315429799,1709029840423,-500.0,0.0001925,2]
[315429800,1709029840432,-500.0,0.0001925,2]
[315429801,1709029840442,-500.0,0.0001925,2]
[315429802,1709029840451,-500.0,0.0001925,2]
[315429803,1709029840460,-500.0,0.0001925,2]
[315429804,1709029840470,-500.0,0.0001925,2]
[315429805,1709029840479,-821.94,0.0001925,2]
[315429806,1709029840489,-821.94,0.0001925,2]
[315429807,1709029840501,-821.94,0.0001925,2]
[315429808,1709029840511,-821.94,0.0001925,2]
[315429809,1709029840521,-821.94,0.0001925,2]
[315429810,1709029840531,-821.94,0.0001925,2]
[315429811,1709029840542,-821.94,0.0001925,2]
[315429812,1709029840552,-500.0,0.0001925,2]
[315429813,1709029840562,-500.0,0.0001925,2]
[315429814,1709029840571,-500.0,0.0001925,2]
[315429815,1709029840580,-500.0,0.0001925,2]
[315429817,1709029840589,-500.0,0.0001925,2]
[315429818,1709029840598,-500.0,0.0001925,2]
[315429819,1709029840606,-276000.0,0.00019251,2]
[315429820,1709029840616,-500.0,0.00019287,2]
[315429821,1709029840625,-500.0,0.00019342,2]
[315429822,1709029840634,-1519.40144155,0.00019351,2]
[315429823,1709029840643,-1536.44373487,0.00019352,2]
[315429824,1709029840652,-500.0,0.00019396,2]
[315429825,1709029840662,-500.0,0.00019451,2]
[315429826,1709029840673,-500.0,0.00019451,2]
[315429827,1709029840682,-486.79569354,0.00019451,2]
[315429828,1709029840691,-821.94,0.00019451,2]
[315429829,1709029840700,-821.94,0.00019451,2]
[315429830,1709029840709,-821.94,0.00019451,2]
[315429831,1709029840717,-821.94,0.00019451,2]
[315429832,1709029840727,-500.0,0.00019452,2]
[315429833,1709029840737,-500.0,0.00019452,2]
[315429834,1709029840746,-500.0,0.00019452,2]
[315429835,1709029840755,-557.52,0.00019452,2]
[315429836,1709029840765,-500.0,0.00019452,2]
[315429837,1709029840774,-241.83685928,0.00019452,2]
[315429838,1709029840783,-500.0,0.00019452,2]
[315429839,1709029840792,-500.0,0.00019452,2]
[315429840,1709029840802,-500.0,0.00019452,2]
[315429841,1709029840811,-606.07,0.00019452,2]
[315429842,1709029840820,-507.42166358,0.00019452,2]
[315429843,1709029840829,-500.0,0.00019452,2]
[315429844,1709029840839,-500.0,0.00019452,2]
[315429845,1709029840848,-583.52,0.00019452,2]
[315429846,1709029840857,-500.0,0.00019452,2]
[315429847,1709029840866,-500.0,0.00019452,2]
[315429848,1709029840875,-500.0,0.00019452,2]
[315429849,1709029840887,-500.0,0.00019452,2]
[315429850,1709029840899,-282.6196593,0.00019452,2]
[315429851,1709029840908,-500.0,0.00019452,2]
[315429853,1709029840918,-501.00933044,0.00019452,2]
[315429855,1709029840927,-500.0,0.00019452,2]
[315429857,1709029840937,-500.0,0.00019452,2]
[315429859,1709029840946,-1268.67,0.00019452,2]
[315429861,1709029840955,-775.4,0.00019452,2]
[315429862,1709029840965,-749.07,0.00019452,2]
[315429864,1709029840974,-500.0,0.00019452,2]
[315429865,1709029840983,-500.0,0.00019452,2]
[315429866,1709029840993,-500.0,0.00019452,2]
[315429867,1709029841002,-500.0,0.00019452,2]
[315429868,1709029841011,-500.0,0.00019452,2]
[315429869,1709029841020,-500.0,0.00019452,2]
[315429871,1709029841029,-500.0,0.00019452,2]
[315429872,1709029841038,-500.0,0.00019452,2]
[315429874,1709029841047,-500.0,0.00019452,2]
[315429875,1709029841056,-500.0,0.00019452,2]
[315429876,1709029841065,-213.90015666,0.00019452,2]
[315429877,1709029841074,-500.0,0.00019452,2]
[315429878,1709029841083,-500.0,0.00019452,2]
[315429880,1709029841092,-212.44196053,0.00019452,2]
[315429881,1709029841102,-500.0,0.00019452,2]
[315429882,1709029841111,-1536.97,0.00019452,2]
[315429883,1709029841120,-395.16181797,0.00019452,2]
[315429884,1709029841129,-521.78939552,0.00019452,2]
[315429885,1709029841138,-500.0,0.00019452,2]
[315429886,1709029841147,-1519.07,0.00019452,2]
[315429887,1709029841156,-500.0,0.00019452,2]
[315429888,1709029841165,-500.0,0.00019452,2]
[315429889,1709029841176,-500.0,0.00019452,2]
[315429890,1709029841186,-500.0,0.00019452,2]
[315429891,1709029841194,-500.0,0.00019452,2]
[315429892,1709029841204,-500.0,0.00019452,2]
[315429893,1709029841213,-500.0,0.00019452,2]
[315429894,1709029841222,-500.0,0.00019452,2]
[315429895,1709029841231,-376.53396052,0.00019452,2]
[315429896,1709029841240,-501.19562815,0.00019452,2]
[315429897,1709029841250,-500.0,0.00019452,2]
[315429898,1709029841259,-907.1,0.00019452,2]
[315429899,1709029841268,-500.0,0.00019452,2]
[315429900,1709029841278,-685.27,0.00019452,2]
[315429901,1709029841287,-500.0,0.00019452,2]
[315429902,1709029841295,-500.0,0.00019452,2]
[315429903,1709029841304,-500.0,0.00019452,2]
[315429904,1709029841313,-500.0,0.00019452,2]
[315429905,1709029841322,-500.0,0.00019452,2]
[315429906,1709029841331,-500.0,0.00019452,2]
[315429907,1709029841341,-744.2,0.00019452,2]
[315429908,1709029841350,-500.0,0.00019452,2]
[315429909,1709029841359,-500.0,0.00019452,2]
[315429910,1709029841368,-2092.87,0.00019452,2]
[315429911,1709029841377,-500.0,0.00019452,2]
[315429912,1709029841387,-1360.77,0.00019452,2]
[315429913,1709029841396,-9597.02,0.00019452,2]
[315429914,1709029841405,-500.0,0.00019452,2]
[315429915,1709029841414,-500.0,0.00019452,2]
[315429916,1709029841425,-3776.74,0.00019452,2]
[315429917,1709029841434,-500.0,0.00019452,2]
[315429918,1709029841443,-500.0,0.00019452,2]
[315429919,1709029841456,-1000.0,0.00019452,2]
[315429920,1709029841466,-581.55260075,0.00019452,2]
[315429921,1709029841475,-1843.95,0.00019452,2]
[315429922,1709029841485,-598.39,0.00019452,2]
[315429923,1709029841494,-554.96885868,0.00019452,2]
[315429924,1709029841504,-500.0,0.00019452,2]
[315429925,1709029841514,-500.0,0.00019452,2]
[315429926,1709029841523,-501.29042956,0.00019452,2]
[315429927,1709029841533,-502.85792086,0.00019452,2]
[315429928,1709029841542,-500.0,0.00019452,2]
[315429929,1709029841551,-1946.01,0.00019452,2]
[315429930,1709029841561,-500.0,0.00019452,2]
[315429931,1709029841571,-152.09589941,0.00019452,2]
[315429932,1709029841581,-2557.53,0.00019452,2]
[315429933,1709029841590,-500.0,0.00019452,2]
[315429934,1709029841599,-500.0,0.00019452,2]
[315429935,1709029841698,-500.0,0.00019452,2]
[315429936,1709029841708,-500.0,0.00019452,2]
[315429937,1709029841718,-226.05511992,0.00019452,2]
[315429938,1709029841728,-17411.95,0.00019452,2]
[315429939,1709029841737,-500.0,0.00019452,2]
[315429940,1709029841747,-500.0,0.00019452,2]
[315429941,1709029841756,-500.0,0.00019452,2]
[315429942,1709029841766,-500.0,0.00019452,2]
[315429943,1709029841775,-500.0,0.00019452,2]
[315429944,1709029841784,-500.0,0.00019452,2]
[315429945,1709029841794,-500.0,0.00019452,2]
[315429946,1709029841804,-1202.2,0.00019452,2]
[315429947,1709029841814,-1690.48,0.00019452,2]
[315429948,1709029841824,-500.0,0.00019452,2]
[315429949,1709029841833,-500.0,0.00019452,2]
[315429950,1709029841843,-500.0,0.00019452,2]
[315429951,1709029841852,-491.01392198,0.00019452,2]
[315429952,1709029841862,-262.021544,0.00019452,2]
[315429953,1709029841872,-500.0,0.00019452,2]
[315429954,1709029841882,-500.0,0.00019452,2]
[315429955,1709029841892,-500.0,0.00019452,2]
[315429956,1709029841903,-1304.09,0.00019452,2]
[315429957,1709029841912,-500.0,0.00019452,2]
[315429958,1709029841923,-593.26,0.00019452,2]
[315429959,1709029841932,-500.0,0.00019452,2]
[315429960,1709029841942,-6492.69,0.00019452,2]
[315429961,1709029841951,-2133.72,0.00019452,2]
[315429962,1709029841960,-501.34358401,0.00019452,2]
[315429963,1709029841969,-500.0,0.00019452,2]
[315429964,1709029841979,-500.0,0.00019452,2]
[315429965,1709029841989,-500.0,0.00019452,2]
[315429966,1709029841998,-500.0,0.00019452,2]
[315429967,1709029842007,-4510.36,0.00019452,2]
[315429968,1709029842016,-1414.54,0.00019452,2]
[315429969,1709029842025,-500.0,0.00019452,2]
[315429970,1709029842034,-3051.96,0.00019452,2]
[315429971,1709029842043,-500.0,0.00019452,2]
[315429972,1709029842051,-500.0,0.00019452,2]
[315429973,1709029842060,-500.0,0.00019452,2]
[315429974,1709029842070,-17947.83,0.00019452,2]
[315429975,1709029842079,-200.27457697,0.00019452,2]
[315429976,1709029842088,-501.83788764,0.00019452,2]
[315429977,1709029842097,-1302.63,0.00019452,2]
[315429978,1709029842106,-3826.56,0.00019452,2]
[315429979,1709029842115,-868.04,0.00019452,2]
[315429980,1709029842123,-500.0,0.00019452,2]
[315429981,1709029842133,-3097.32,0.00019452,2]
[315429982,1709029842141,-336.01860419,0.00019452,2]
[315429983,1709029842150,-2279.01,0.00019452,2]
[315429984,1709029842159,-500.0,0.00019452,2]
[315429985,1709029842170,-295.01720244,0.00019452,2]
[315429986,1709029842178,-728.61,0.00019452,2]
[315429987,1709029842187,-500.0,0.00019452,2]
[315429988,1709029842196,-500.0,0.00019452,2]
[315429989,1709029842205,-500.0,0.00019452,2]
[315429990,1709029842214,-1677.26,0.00019452,2]
[315429991,1709029842223,-1097.39,0.00019452,2]
[315429992,1709029842232,-696.69,0.00019452,2]
[315429993,1709029842241,-500.0,0.00019452,2]
[315429995,1709029842250,-306.0,0.00019479,2]
[315429997,1709029842259,-959.01542021,0.000195,2]
[315429999,1709029842268,-1536.44373481,0.00019524,2]
[315430000,1709029842277,-166.666666,0.00019627,2]
[315430002,1709029842286,-238.47583384,0.00019725,2]
[315430003,1709029842295,-821.94,0.00019725,2]
[315430004,1709029842304,-821.94,0.00019725,2]
[315430005,1709029842313,-821.94,0.00019725,2]
[315430006,1709029842322,-500.0,0.00019726,2]
[315430007,1709029842332,-500.0,0.00019726,2]
[315430008,1709029842341,-557.52,0.00019726,2]
[315430009,1709029842350,-500.0,0.00019726,2]
[315430010,1709029842360,-500.0,0.00019726,2]
[315430011,1709029842368,-500.0,0.00019726,2]
[315430012,1709029842378,-500.0,0.00019726,2]
[315430013,1709029842387,-606.07,0.00019726,2]
[315430014,1709029842396,-500.0,0.00019726,2]
[315430015,1709029842405,-500.0,0.00019726,2]
[315430016,1709029842414,-583.52,0.00019726,2]
[315430017,1709029842424,-500.0,0.00019726,2]
[315430018,1709029842433,-500.0,0.00019726,2]
[315430019,1709029842441,-500.0,0.00019726,2]
[315430020,1709029842451,-500.0,0.00019726,2]
[315430021,1709029842460,-500.0,0.00019726,2]
[315430022,1709029842468,-548.95221423,0.00019726,2]
[315430023,1709029842478,-1268.67,0.00019726,2]
[315430024,1709029842487,-775.4,0.00019726,2]
[315430025,1709029842497,-749.07,0.00019726,2]
[315430026,1709029842506,-500.0,0.00019726,2]
[315430027,1709029842515,-500.0,0.00019726,2]
[315430028,1709029842526,-500.0,0.00019726,2]
[315430029,1709029842536,-333.04255885,0.00019726,2]
[315430030,1709029842545,-299.44952129,0.00019726,2]
[315430031,1709029842555,-500.0,0.00019726,2]
[315430032,1709029842564,-500.0,0.00019726,2]
[315430033,1709029842573,-401.01611644,0.00019726,2]
[315430034,1709029842582,-500.0,0.00019726,2]
[315430035,1709029842590,-500.0,0.00019726,2]
[315430036,1709029842599,-448.32673264,0.00019726,2]
[315430037,1709029842608,-500.0,0.00019726,2]
[315430038,1709029842618,-1536.97,0.00019726,2]
[315430039,1709029842627,-500.0,0.00019726,2]
[315430040,1709029842636,-1519.07,0.00019726,2]
[315430041,1709029842645,-317.207108,0.00019726,2]
[315430042,1709029842655,-500.0,0.00019726,2]
[315430043,1709029842664,-500.0,0.00019726,2]
[315430044,1709029842674,-500.0,0.00019726,2]
[315430045,1709029842683,-500.0,0.00019726,2]
[315430046,1709029842693,-500.0,0.00019726,2]
[315430047,1709029842702,-500.0,0.00019726,2]
[315430048,1709029842711,-315.7665185,0.00019726,2]
[315430049,1709029842721,-907.1,0.00019726,2]
[315430050,1709029842730,-311.25723657,0.00019726,2]
[315430051,1709029842740,-685.27,0.00019726,2]
[315430052,1709029842749,-500.0,0.00019726,2]
[315430053,1709029842758,-500.0,0.00019726,2]
[315430054,1709029842767,-500.0,0.00019726,2]
[315430055,1709029842777,-500.0,0.00019726,2]
[315430056,1709029842786,-500.0,0.00019726,2]
[315430057,1709029842794,-500.0,0.00019726,2]
[315430058,1709029842804,-744.2,0.00019726,2]
[315430059,1709029842813,-500.0,0.00019726,2]
[315430060,1709029842822,-302.1536889,0.00019726,2]
[315430061,1709029842831,-2092.87,0.00019726,2]
[315430062,1709029842839,-500.0,0.00019726,2]
[315430063,1709029842849,-1360.77,0.00019726,2]
[315430064,1709029842858,-9597.02,0.00019726,2]
[315430065,1709029842867,-500.0,0.00019726,2]
[315430066,1709029842876,-3776.74,0.00019726,2]
[315430067,1709029842888,-500.0,0.00019726,2]
[315430068,1709029842898,-500.0,0.00019726,2]
[315430069,1709029842907,-1002.42085392,0.00019726,2]
[315430070,1709029842916,-1843.95,0.00019726,2]
[315430071,1709029842927,-598.39,0.00019726,2]
[315430072,1709029842937,-500.0,0.00019726,2]
[315430073,1709029842946,-501.97109407,0.00019726,2]
[315430074,1709029842955,-1946.01,0.00019726,2]
[315430075,1709029842964,-500.0,0.00019726,2]
[315430076,1709029842973,-2557.53,0.00019726,2]
[315430077,1709029842984,-502.32182453,0.00019726,2]
[315430078,1709029842993,-500.0,0.00019726,2]
[315430079,1709029843002,-500.0,0.00019726,2]
[315430080,1709029843010,-17411.95,0.00019726,2]
[315430081,1709029843019,-500.0,0.00019726,2]
[315430082,1709029843028,-500.0,0.00019726,2]
[315430083,1709029843037,-495.60629693,0.00019726,2]
[315430084,1709029843046,-500.0,0.00019726,2]
[315430085,1709029843056,-500.0,0.00019726,2]
[315430086,1709029843064,-500.0,0.00019726,2]
[315430087,1709029843074,-500.0,0.00019726,2]
[315430088,1709029843082,-1202.2,0.00019726,2]
[315430089,1709029843091,-1690.48,0.00019726,2]
[315430090,1709029843101,-500.0,0.00019726,2]
[315430091,1709029843110,-500.0,0.00019726,2]
[315430092,1709029843119,-500.0,0.00019726,2]
[315430093,1709029843128,-500.0,0.00019726,2]
[315430094,1709029843137,-500.0,0.00019726,2]
[315430095,1709029843146,-1304.09,0.00019726,2]
[315430096,1709029843156,-502.56998248,0.00019726,2]
[315430097,1709029843165,-593.26,0.00019726,2]